fUSD/lending_fUSD_20260208
["ID","MTS","AMOUNT","RATE_DAILY","PERIOD"]
[404781661,1770543156319,373.23596,0.00034904,31]
[404781662,1770543156568,154.053951,0.00034904,31]
[404781663,1770543157763,154.053951,0.0003313,31]
[404781664,1770543158052,154.053951,0.00034904,31]
[404781665,1770543159232,154.053951,0.0003313,31]
[404781666,1770543159557,154.053957,0.00034904,31]
[404781669,1770543204566,151.0,0.0003313,31]
[404781670,1770543204858,151.0,0.00034904,31]
[404781672,1770543216227,151.0,0.0003313,31]
[404781673,1770543216539,151.0,0.00034904,31]
[404781674,1770543217716,151.0,0.0003313,31]
[404781675,1770543218015,151.0,0.00034904,31]
[404781676,1770543252083,211.183097,0.0003313,31]
[404781677,1770543252375,211.183097,0.00034904,31]
[404781678,1770543253540,211.183097,0.0003313,31]
[404781679,1770543253835,211.183097,0.00034904,31]
[404781680,1770543254553,182.93,0.00021343,2]
[404781681,1770543254983,211.183097,0.0003313,31]
[404781682,1770543255277,211.183097,0.00034904,31]
[404781683,1770543256436,211.183097,0.0003313,31]
[404781684,1770543256758,211.183101,0.00034904,31]
[404781685,1770543280896,151.633101,0.0003313,31]
[404781686,1770543282367,151.633101,0.0003313,31]
[404781687,1770543283889,151.633101,0.0003313,31]
[404781688,1770543285447,151.633105,0.0003313,31]
[404781689,1770543320336,150.0,0.00035342,30]
[404781690,1770543320485,254.5670041,0.00035397,30]
[404781691,1770543321711,500.0,0.00035342,30]
[404781692,1770543321835,500.0,0.00035342,30]
[404781693,1770543321890,500.0,0.00035342,30]
[404781694,1770543321936,500.0,0.00035397,30]
[404781695,1770543321984,500.0,0.00035342,30]
[404781696,1770543322029,588.17361545,0.00035397,30]
[404781697,1770543322073,500.0,0.00035397,30]
[404781698,1770543322116,500.0,0.00035452,30]
[404781699,1770543322168,500.0,0.00035397,30]
[404781700,1770543322225,500.0,0.00035452,30]
[404781701,1770543322279,500.0,0.00035506,30]
[404781702,1770543322333,500.0,0.00035452,30]
[404781703,1770543322383,500.0,0.00035561,30]
[404781704,1770543322451,500.0,0.00035506,30]
[404781705,1770543322538,500.0,0.00035506,30]
[404781706,1770543322759,500.0,0.00035616,30]
[404781707,1770543322806,500.0,0.00035561,30]
[404781708,1770543322858,500.0,0.00035561,30]
[404781709,1770543322906,500.0,0.00035616,30]
[404781710,1770543322950,500.0,0.00035616,30]
[404781711,1770543323815,500.0,0.00035342,30]
[404781712,1770543323991,500.0,0.00035397,30]
[404781713,1770543324156,500.0,0.00035452,30]
[404781714,1770543324323,500.0,0.00035506,30]
[404781715,1770543324504,500.0,0.00035561,30]
[404781716,1770543324675,500.0,0.00035616,30]
[404781717,1770543325272,500.0,0.00035342,30]
[404781718,1770543325438,500.0,0.00035397,30]
[404781719,1770543325606,500.0,0.00035452,30]
[404781720,1770543325758,500.0,0.00035506,30]
[404781721,1770543325908,500.0,0.00035561,30]
[404781722,1770543325999,588.0,0.00035342,30]
[404781723,1770543326070,500.0,0.00035616,30]
[404781724,1770543326151,588.0,0.00035397,30]
[404781725,1770543326315,588.0,0.00035452,30]
[404781726,1770543326502,588.0,0.00035506,30]
[404781727,1770543326623,570.0,0.00035342,30]
[404781728,1770543326669,588.0,0.00035561,30]
[404781729,1770543326792,570.0,0.00035397,30]
[404781730,1770543326834,588.0,0.00035616,30]
[404781731,1770543326883,150.0,0.00035342,30]
[404781732,1770543326936,570.0,0.00035452,30]
[404781733,1770543327040,203.02700794,0.00035397,30]
[404781734,1770543327116,570.0,0.00035506,30]
[404781735,1770543327266,570.0,0.00035561,30]
[404781736,1770543327411,570.0,0.00035616,30]
[404781738,1770543328010,500.0,0.00035342,30]
[404781739,1770543328385,500.0,0.00035397,30]
[404781740,1770543328550,500.0,0.00035452,30]
[404781741,1770543328708,500.0,0.00035506,30]
[404781742,1770543328761,151.86545368,0.00035342,30]
[404781743,1770543328886,500.0,0.00035561,30]
[404781744,1770543329039,500.0,0.00035616,30]
[404781745,1770543329410,150.0,0.00035342,30]
[404781746,1770543329576,201.9069819,0.00035397,30]
[404781747,1770543330232,691.0,0.00035342,30]
[404781748,1770543330542,691.0,0.00035397,30]
[404781749,1770543330710,691.0,0.00035452,30]
[404781750,1770543330892,691.0,0.00035506,30]
[404781751,1770543331037,691.0,0.00035561,30]
[404781752,1770543331191,691.0,0.00035616,30]
[404781753,1770543377012,217.66953841,0.00035616,30]
[404781756,1770543434834,151.0,0.00035616,30]
[404781757,1770543435461,156.587,0.00035616,30]
[404781758,1770543436099,162.380719,0.00035616,30]
[404781759,1770543436706,168.3888056,0.00035616,30]
[404781760,1770543437339,174.61919141,0.00035616,30]
[404781761,1770543437987,181.08010149,0.00035616,30]
[404781762,1770543438670,187.78006525,0.00035616,30]
[404781763,1770543439313,194.72792766,0.00035616,30]
[404781764,1770543441930,500.0,0.00035342,30]
[404781765,1770543442111,792.0,0.00035342,30]
[404781766,1770543442156,500.0,0.00035397,30]
[404781767,1770543442312,792.0,0.00035397,30]
[404781768,1770543442355,500.0,0.00035452,30]
[404781769,1770543442470,792.0,0.00035452,30]
[404781770,1770543442718,792.0,0.00035506,30]
[404781771,1770543442765,500.0,0.00035506,30]
[404781772,1770543442866,500.0,0.00035561,30]
[404781773,1770543443014,500.0,0.00035616,30]
[404781774,1770543443066,792.0,0.00035561,30]
[404781775,1770543443337,201.93286099,0.00035616,30]
[404781776,1770543443382,792.0,0.00035616,30]
[404781777,1770543444133,209.40437684,0.00035616,30]
[404781778,1770543444781,217.15233878,0.00035616,30]
[404781779,1770543445028,151.0,0.0003526,31]
[404781780,1770543445488,225.18697532,0.00035616,30]
[404781781,1770543446124,233.51889341,0.00035616,30]
[404781782,1770543446688,151.0,0.0003526,31]
[404781783,1770543446815,242.15909246,0.00035616,30]
[404781784,1770543447439,251.11897888,0.00035616,30]
[404781785,1770543448048,260.4103811,0.00035616,30]
[404781786,1770543448214,223.941578,0.00034888,31]
[404781787,1770543448508,223.941578,0.0003526,31]
[404781788,1770543448665,270.0455652,0.00035616,30]
[404781789,1770543449321,280.03725112,0.00035616,30]
[404781790,1770543449693,223.941578,0.00034888,31]
[404781791,1770543449928,290.39862941,0.00035616,30]
[404781792,1770543449987,223.941578,0.0003526,31]
[404781793,1770543450544,301.1433787,0.00035616,30]
[404781794,1770543451265,223.941578,0.00034888,31]
[404781795,1770543451564,223.941578,0.0003526,31]
[404781796,1770543452727,223.941578,0.00034888,31]
[404781797,1770543453012,223.941586,0.0003526,31]
[404781798,1770543454384,296.977843,0.00034888,31]
[404781799,1770543454965,296.977843,0.0003526,31]
[404781800,1770543456361,296.977843,0.00034888,31]
[404781801,1770543456602,296.977843,0.0003526,31]
[404781802,1770543458059,296.977843,0.00034888,31]
[404781803,1770543458151,296.977843,0.0003526,31]
[404781804,1770543459336,296.977843,0.00034888,31]
[404781805,1770543459634,296.977834,0.0003526,31]
[404781806,1770543510948,500.0,0.00035342,30]
[404781807,1770543510990,150.0,0.00035342,30]
[404781808,1770543511098,500.0,0.00035397,30]
[404781809,1770543511203,500.0,0.00035342,30]
[404781810,1770543511259,458.67905855,0.00035452,30]
[404781811,1770543511302,500.0,0.00035342,30]
[404781812,1770543511389,500.0,0.00035397,30]
[404781813,1770543511429,151.0,0.00034888,30]
[404781814,1770543511498,500.0,0.00035397,30]
[404781815,1770543511541,500.0,0.00035452,30]
[404781816,1770543511652,500.0,0.00035452,30]
[404781817,1770543511692,151.0,0.0003526,30]
[404781818,1770543511732,500.0,0.00035506,30]
[404781819,1770543511810,500.0,0.00035506,30]
[404781820,1770543511978,500.0,0.00035561,30]
[404781821,1770543512108,500.0,0.00035561,30]
[404781822,1770543512160,500.0,0.00035616,30]
[404781823,1770543512277,500.0,0.00035616,30]
[404781824,1770543512883,151.0,0.00034888,30]
[404781825,1770543513509,151.0,0.0003526,30]
[404781826,1770543514722,151.0,0.00034888,30]
[404781827,1770543515003,252.961237,0.0003526,30]
[404781828,1770543547675,191.765211,0.00034888,31]
[404781829,1770543550021,151.0,0.00034888,31]
[404781830,1770543550115,212.739513,0.00034888,31]
[404781831,1770543550337,151.0,0.0003526,31]
[404781832,1770543551576,151.0,0.00034888,31]
[404781833,1770543551885,151.0,0.0003526,31]
[404781834,1770543553071,151.0,0.00034888,31]
[404781835,1770543553362,151.0,0.0003526,31]
[404781837,1770543612979,578.40709,0.00034821,31]
[404781838,1770543613316,578.40709,0.0003526,31]
[404781839,1770543614546,578.40709,0.00034821,31]
[404781840,1770543615084,578.40709,0.0003526,31]
[404781841,1770543616730,578.40709,0.00034821,31]
[404781842,1770543617043,578.40709,0.0003526,31]
[404781843,1770543618256,578.40709,0.00034821,31]
[404781844,1770543618549,578.40709,0.0003526,31]
[404781847,1770543631538,151.0,0.00034821,31]
[404781848,1770543631823,151.0,0.0003526,31]
[404781849,1770543632982,151.0,0.00034821,31]
[404781850,1770543633264,151.0,0.0003526,31]
[404781852,1770543697938,197.182,0.00035506,42]
[404781854,1770543735865,150.0,0.00035342,30]
[404781855,1770543735947,500.0,0.00035342,30]
[404781856,1770543736007,150.0,0.00035342,30]
[404781857,1770543736106,500.0,0.00035397,30]
[404781858,1770543736157,290.05274747,0.00035397,30]
[404781859,1770543736263,500.0,0.00035452,30]
[404781860,1770543736419,500.0,0.00035506,30]
[404781861,1770543736720,151.0,0.00035616,30]
[404781862,1770543736776,500.0,0.00035561,30]
[404781863,1770543736950,197.0,0.00035616,30]
[404781865,1770543737511,156.587,0.00035616,30]
[404781866,1770543738318,162.380719,0.00035616,30]
[404781867,1770543739003,168.3888056,0.00035616,30]
[404781868,1770543739618,174.61919141,0.00035616,30]
[404781869,1770543740297,181.08010149,0.00035616,30]
[404781870,1770543740961,187.78006525,0.00035616,30]
[404781871,1770543741595,194.72792766,0.00035616,30]
[404781872,1770543742231,201.93286099,0.00035616,30]
[404781873,1770543742889,209.40437684,0.00035616,30]
[404781874,1770543743516,217.15233878,0.00035616,30]
[404781875,1770543744304,225.18697532,0.00035616,30]
[404781876,1770543744821,233.51889341,0.00035616,30]
[404781877,1770543745439,242.15909246,0.00035616,30]
[404781878,1770543746106,251.11897888,0.00035616,30]
[404781879,1770543746752,260.4103811,0.00035616,30]
[404781880,1770543747396,270.0455652,0.00035616,30]
[404781881,1770543747902,151.0,0.00034904,31]
[404781882,1770543748042,280.03725112,0.00035616,30]
[404781883,1770543748211,151.0,0.0003526,31]
[404781884,1770543748657,290.39862941,0.00035616,30]
[404781885,1770543749284,301.1433787,0.00035616,30]
[404781886,1770543749505,151.0,0.00034904,31]
[404781887,1770543749828,151.0,0.0003526,31]
[404781888,1770543750265,437.040836,0.00034904,31]
[404781889,1770543750573,437.040836,0.0003526,31]
[404781890,1770543751057,151.0,0.00034904,31]
[404781891,1770543751333,151.0,0.0003526,31]
[404781892,1770543751806,437.040836,0.00034904,31]
[404781893,1770543752089,437.040836,0.0003526,31]
[404781894,1770543753254,437.040836,0.00034904,31]
[404781895,1770543753546,437.040836,0.0003526,31]
[404781896,1770543754250,151.0,0.00034904,31]
[404781897,1770543754598,151.0,0.0003526,31]
[404781898,1770543754701,437.040836,0.00034904,31]
[404781899,1770543754987,437.040836,0.0003526,31]
[404781900,1770543755818,151.0,0.00034904,31]
[404781901,1770543756151,151.0,0.0003526,31]
[404781902,1770543788295,500.0,0.00035342,30]
[404781903,1770543788459,500.0,0.00035397,30]
[404781904,1770543788610,594.0,0.00035342,30]
[404781905,1770543788668,500.0,0.00035452,30]
[404781906,1770543788786,594.0,0.00035397,30]
[404781907,1770543788831,500.0,0.00035506,30]
[404781908,1770543788975,594.0,0.00035452,30]
[404781909,1770543789023,500.0,0.00035561,30]
[404781910,1770543789130,594.0,0.00035506,30]
[404781911,1770543789185,500.0,0.00035616,30]
[404781912,1770543789503,594.0,0.00035561,30]
[404781913,1770543789567,594.0,0.00035616,30]
[404781914,1770543804732,151.0,0.0003526,31]
[404781915,1770543813489,151.0,0.0003526,31]
[404781916,1770543848445,151.0,0.0003526,31]
[404781917,1770543849983,151.0,0.0003526,31]
[404781918,1770543857733,446.35294118,0.00032849,30]
[404781919,1770543858023,1115.88235294,0.00035589,120]
[404781920,1770543881008,151.0,0.00035167,31]
[404781921,1770543881286,151.0,0.0003526,31]
[404781922,1770543882453,151.0,0.00035167,31]
[404781923,1770543882738,151.0,0.0003526,31]
[404781924,1770543883981,151.0,0.00035167,31]
[404781925,1770543884281,151.0,0.0003526,31]
[404781928,1770543912890,692.04354688,0.00035259,30]
[404781930,1770543929496,500.0,0.00035342,30]
[404781931,1770543929650,500.0,0.00035397,30]
[404781932,1770543929750,500.0,0.00035342,30]
[404781933,1770543929864,500.0,0.00035452,30]
[404781934,1770543929923,500.0,0.00035397,30]
[404781935,1770543929977,441.0,0.00035342,30]
[404781936,1770543930024,500.0,0.00035506,30]
[404781937,1770543930077,500.0,0.00035452,30]
[404781938,1770543930123,441.0,0.00035397,30]
[404781939,1770543930182,500.0,0.00035561,30]
[404781940,1770543930245,500.0,0.00035506,30]
[404781941,1770543930310,441.0,0.00035452,30]
[404781942,1770543930356,500.0,0.00035616,30]
[404781943,1770543930409,500.0,0.00035561,30]
[404781944,1770543930460,441.0,0.00035506,30]
[404781945,1770543930501,427.0,0.00035342,30]
[404781946,1770543930555,500.0,0.00035616,30]
[404781947,1770543930610,441.0,0.00035561,30]
[404781949,1770543930832,427.0,0.00035397,30]
[404781950,1770543930896,441.0,0.00035616,30]
[404781951,1770543930938,150.0,0.00035342,30]
[404781952,1770543930990,427.0,0.00035452,30]
[404781953,1770543931062,150.0,0.00035397,30]
[404781954,1770543931106,427.0,0.00035506,30]
[404781955,1770543931167,200.25270898,0.00035452,30]
[404781956,1770543931216,427.0,0.00035561,30]
[404781957,1770543931286,427.0,0.00035616,30]
[404781958,1770543932616,519.0,0.00035342,30]
[404781959,1770543932753,519.0,0.00035397,30]
[404781960,1770543932895,519.0,0.00035452,30]
[404781961,1770543933044,519.0,0.00035506,30]
[404781962,1770543933243,519.0,0.00035561,30]
[404781963,1770543933391,519.0,0.00035616,30]
[404781968,1770543988781,151.0,0.00035167,31]
[404781971,1770544026374,500.0,0.00035342,30]
[404781972,1770544026558,500.0,0.00035397,30]
[404781973,1770544026713,500.0,0.00035452,30]
[404781974,1770544027102,531.52731537,0.00035506,30]
[404781975,1770544038854,151.0,0.00035616,30]
[404781976,1770544039494,156.587,0.00035616,30]
[404781977,1770544040134,162.380719,0.00035616,30]
[404781978,1770544040874,168.3888056,0.00035616,30]
[404781979,1770544041507,174.61919141,0.00035616,30]
[404781980,1770544042227,181.08010149,0.00035616,30]
[404781981,1770544042882,187.78006525,0.00035616,30]
[404781982,1770544043562,194.72792766,0.00035616,30]
[404781983,1770544044324,201.93286099,0.00035616,30]
[404781984,1770544044977,209.40437684,0.00035616,30]
[404781985,1770544045624,217.15233878,0.00035616,30]
[404781986,1770544046266,225.18697532,0.00035616,30]
[404781987,1770544046884,233.51889341,0.00035616,30]
[404781988,1770544047522,242.15909246,0.00035616,30]
[404781989,1770544048132,251.11897888,0.00035616,30]
[404781990,1770544048772,260.4103811,0.00035616,30]
[404781991,1770544049446,270.0455652,0.00035616,30]
[404781992,1770544049686,151.0,0.00035167,31]
[404781993,1770544049978,151.0,0.0003526,31]
[404781994,1770544050071,280.03725112,0.00035616,30]
[404781995,1770544050693,290.39862941,0.00035616,30]
[404781996,1770544051166,151.0,0.00035167,31]
[404781997,1770544051249,178.186706,0.00035167,31]
[404781998,1770544051301,301.1433787,0.00035616,30]
[404781999,1770544051449,151.0,0.0003526,31]
[404782000,1770544051557,178.186706,0.0003526,31]
[404782001,1770544052767,178.186706,0.00035167,31]
[404782002,1770544053090,178.186706,0.0003526,31]
[404782003,1770544054463,178.186706,0.00035167,31]
[404782004,1770544054773,178.186706,0.0003526,31]
[404782005,1770544056022,178.186706,0.00035167,31]
[404782006,1770544056305,178.186702,0.0003526,31]
[404782007,1770544105077,500.0,0.00035342,30]
[404782008,1770544105227,500.0,0.00035397,30]
[404782009,1770544105280,446.0,0.00035342,30]
[404782010,1770544105427,446.0,0.00035397,30]
[404782011,1770544105636,500.0,0.00035452,30]
[404782012,1770544105943,500.0,0.00035506,30]
[404782013,1770544106102,500.0,0.00035561,30]
[404782014,1770544106151,446.0,0.00035452,30]
[404782015,1770544106257,500.0,0.00035616,30]
[404782016,1770544106295,446.0,0.00035506,30]
[404782017,1770544106473,446.0,0.00035561,30]
[404782018,1770544106945,446.0,0.00035616,30]
[404782019,1770544150595,151.0,0.00034904,31]
[404782020,1770544150873,151.0,0.0003526,31]
[404782021,1770544161727,227.55,0.00030137,30]
[404782022,1770544162159,227.55,0.00034972,30]
[404782023,1770544211474,347.044254,0.0003526,31]
[404782024,1770544213107,347.044254,0.0003526,31]
[404782025,1770544214551,347.044254,0.0003526,31]
[404782027,1770544216751,347.044254,0.0003526,31]
[404782038,1770544237593,-1000.0,0.00026628,2]
[404782039,1770544237603,-169.59,0.00026643,2]
[404782040,1770544237613,-200.0,0.00026735,2]
[404782041,1770544237622,-171.46816465,0.0002674,2]
[404782042,1770544237632,-1826.89,0.0002674,2]
[404782043,1770544237641,-1220.71,0.0002684,2]
[404782044,1770544237650,-5000.0,0.0002687,2]
[404782045,1770544237663,-160.0,0.00027218,2]
[404782046,1770544237673,-300.0,0.00027369,2]
[404782047,1770544237682,-334.76470588,0.0002737,2]
[404782048,1770544237691,-1000.0,0.00027397,20]
[404782049,1770544237701,-300.0,0.00027397,2]
[404782050,1770544237711,-151.0,0.00027407,7]
[404782051,1770544237720,-7777.17712947,0.00027409,2]
[404782052,1770544237731,-1567.62883664,0.00027409,2]
[404782077,1770544243296,-351.46,0.00027409,2]
[404782078,1770544243351,-306.5205615,0.00027409,2]
[404782079,1770544243361,-375.73840077,0.00027409,2]
[404782080,1770544243369,-500.0,0.00027409,2]
[404782081,1770544243378,-135.25408438,0.00027409,2]
[404782082,1770544243405,-364.74591562,0.00027409,2]
[404782083,1770544243414,-500.0,0.00027409,2]
[404782084,1770544243423,-500.0,0.00027409,2]
[404782085,1770544243432,-500.0,0.00027409,2]
[404782086,1770544243441,-500.0,0.00027409,2]
[404782087,1770544243450,-500.0,0.00027409,2]
[404782088,1770544243459,-500.0,0.00027409,2]
[404782089,1770544243469,-500.0,0.00027409,2]
[404782090,1770544243478,-500.0,0.00027409,2]
[404782091,1770544243487,-500.0,0.00027409,2]
[404782092,1770544243496,-500.0,0.00027409,2]
[404782093,1770544243505,-500.0,0.00027409,2]
[404782094,1770544243515,-500.0,0.00027409,2]
[404782095,1770544243524,-500.0,0.00027409,2]
[404782096,1770544243533,-500.0,0.00027409,2]
[404782097,1770544243543,-500.0,0.00027409,2]
[404782098,1770544243552,-500.0,0.00027409,2]
[404782099,1770544243561,-500.0,0.00027409,2]
[404782100,1770544243571,-500.0,0.00027409,2]
[404782101,1770544243580,-629.31836554,0.00027409,2]
[404782102,1770544243590,-500.0,0.00027409,2]
[404782103,1770544243599,-500.0,0.00027409,2]
[404782104,1770544243608,-500.0,0.00027409,2]
[404782105,1770544243617,-500.0,0.00027409,2]
[404782106,1770544243626,-500.0,0.00027409,2]
[404782107,1770544243636,-500.0,0.00027409,2]
[404782108,1770544243645,-500.0,0.00027409,2]
[404782109,1770544243654,-500.0,0.00027409,2]
[404782110,1770544243663,-500.0,0.00027409,2]
[404782111,1770544243673,-500.0,0.00027409,2]
[404782112,1770544243683,-500.0,0.00027409,2]
[404782113,1770544243692,-500.0,0.00027409,2]
[404782114,1770544243702,-500.0,0.00027409,2]
[404782115,1770544243712,-500.0,0.00027409,2]
[404782116,1770544243723,-500.0,0.00027409,2]
[404782117,1770544243739,-500.0,0.00027409,2]
[404782118,1770544243748,-500.0,0.00027409,2]
[404782119,1770544243758,-500.0,0.00027409,2]
[404782120,1770544243767,-500.0,0.00027409,2]
[404782121,1770544243777,-500.0,0.00027409,2]
[404782122,1770544243786,-500.0,0.00027409,2]
[404782123,1770544243795,-500.0,0.00027409,2]
[404782124,1770544243805,-500.0,0.00027409,2]
[404782125,1770544243814,-500.0,0.00027409,2]
[404782126,1770544243823,-500.0,0.00027409,2]
[404782127,1770544243832,-200.0,0.00027409,2]
[404782128,1770544243841,-500.0,0.00027409,2]
[404782129,1770544243850,-500.0,0.00027409,2]
[404782130,1770544243859,-202.78983443,0.0002741,2]
[404782131,1770544243868,-150.99,0.0002741,2]
[404782132,1770544243877,-6220.73,0.0002741,10]
[404782133,1770544243887,-117470.21,0.0002741,2]
[404782134,1770544243896,-150.99,0.0002741,2]
[404782135,1770544243906,-5376.49190111,0.000275,2]
[404782136,1770544243915,-202.82770222,0.00027509,2]
[404782137,1770544243932,-212.7,0.00027511,14]
[404782138,1770544243944,-500.0,0.00027511,2]
[404782139,1770544243953,-500.0,0.00027511,2]
[404782141,1770544243962,-500.0,0.00027511,2]
[404782142,1770544243972,-500.0,0.00027511,2]
[404782143,1770544243981,-500.0,0.00027511,2]
[404782144,1770544243990,-500.0,0.00027511,2]
[404782145,1770544243999,-500.0,0.00027511,2]
[404782146,1770544244009,-500.0,0.00027511,2]
[404782147,1770544244019,-500.0,0.00027511,2]
[404782148,1770544244028,-500.0,0.00027511,2]
[404782149,1770544244038,-500.0,0.00027511,2]
[404782150,1770544244047,-500.0,0.00027511,2]
[404782151,1770544244057,-500.0,0.00027511,2]
[404782152,1770544244071,-500.0,0.00027511,2]
[404782153,1770544244080,-500.0,0.00027511,2]
[404782154,1770544244089,-401.59477055,0.00027511,2]
[404782155,1770544244099,-1000.0,0.00027513,2]
[404782156,1770544244110,-372.9937,0.00027513,2]
[404782157,1770544244120,-2500.0,0.00027611,2]
[404782158,1770544244129,-23646.538952,0.00027613,2]
[404782159,1770544244138,-2467.0559643,0.00027613,2]
[404782160,1770544244151,-267.7900743,0.00027646,2]
[404782161,1770544244160,-349.55787924,0.00027673,5]
[404782162,1770544244169,-229.66150864,0.00027673,5]
[404782163,1770544244178,-503.23056883,0.00027673,2]
[404782164,1770544244187,-500.0,0.00027683,2]
[404782165,1770544244198,-160.0,0.000277,10]
[404782166,1770544244207,-14770.57,0.00027711,2]
[404782167,1770544244216,-212.7,0.00027785,14]
[404782168,1770544244226,-200.0,0.00027799,2]
[404782169,1770544244236,-500.0,0.00027957,2]
[404782170,1770544244245,-291.68542325,0.00028,2]
[404782171,1770544244254,-10000.0,0.00028036,2]
[404782172,1770544244264,-25404.55155193,0.00028036,2]
[404782174,1770544245448,-3251.89,0.00028036,2]
[404782175,1770544245598,-674.05539046,0.00028036,2]
[404782176,1770544245608,-500.0,0.00028058,3]
[404782177,1770544245617,-212.7,0.00028059,14]
[404782178,1770544245627,-1826.89,0.00028077,2]
[404782179,1770544245637,-151.0,0.00028133,7]
[404782180,1770544245647,-151.0,0.00028133,7]
[404782181,1770544245656,-151.0,0.00028133,7]
[404782182,1770544245666,-500.0,0.00028135,10]
[404782183,1770544245676,-500.0,0.00028135,10]
[404782184,1770544245685,-1831.5432201,0.00028136,2]
[404782185,1770544245695,-73178.28951693,0.00028136,2]
[404782219,1770544297699,157.746,0.00035506,42]
[404782236,1770544332989,151.0,0.00035616,30]
[404782238,1770544340489,156.587,0.00035616,30]
[404782239,1770544341110,162.380719,0.00035616,30]
[404782240,1770544341742,168.3888056,0.00035616,30]
[404782241,1770544342420,174.61919141,0.00035616,30]
[404782242,1770544343160,181.08010149,0.00035616,30]
[404782243,1770544343652,187.78006525,0.00035616,30]
[404782244,1770544344280,194.72792766,0.00035616,30]
[404782245,1770544344921,201.93286099,0.00035616,30]
[404782246,1770544345555,209.40437684,0.00035616,30]
[404782247,1770544346040,151.0,0.00034565,31]
[404782248,1770544346194,217.15233878,0.00035616,30]
[404782249,1770544346344,151.0,0.0003526,31]
[404782250,1770544346815,225.18697532,0.00035616,30]
[404782251,1770544347686,233.51889341,0.00035616,30]
[404782252,1770544347787,151.0,0.00034565,31]
[404782253,1770544348162,242.15909246,0.00035616,30]
[404782254,1770544348217,271.298936,0.0003526,31]
[404782255,1770544348823,251.11897888,0.00035616,30]
[404782256,1770544348962,151.0,0.00034818,31]
[404782257,1770544349274,151.0,0.0003526,31]
[404782258,1770544349443,262.224502,0.00034565,31]
[404782259,1770544349487,260.4103811,0.00035616,30]
[404782260,1770544349775,262.224502,0.0003526,31]
[404782261,1770544350112,270.0455652,0.00035616,30]
[404782262,1770544350492,212.274383,0.00034818,31]
[404782263,1770544350779,280.03725112,0.00035616,30]
[404782264,1770544350976,262.224502,0.00034565,31]
[404782265,1770544351277,262.224502,0.0003526,31]
[404782266,1770544351446,290.39862941,0.00035616,30]
[404782267,1770544352112,301.1433787,0.00035616,30]
[404782268,1770544352473,262.224502,0.00034565,31]
[404782269,1770544352538,151.0,0.00034565,31]